bitfinex-derivatives/quotes_BTCF0:USTF0_20250411
["timestamp","ask_amount","ask_price","bid_price","bid_amount"]
[1744357384242,5.401e-05,81422.0,81421.0,0.1229019]
[1744357384838,5.401e-05,81422.0,81421.0,0.1536019]
[1744357385338,5.401e-05,81422.0,81421.0,0.1229019]
[1744357386041,0.12295441,81422.0,81421.0,0.1229019]
[1744357392250,0.12295441,81422.0,81415.0,0.1843595]
[1744357392251,0.122911,81416.0,81415.0,0.1843595]
[1744357392843,0.122911,81416.0,81415.0,0.2162595]
[1744357393745,0.186611,81416.0,81415.0,0.2162595]
[1744357394545,0.186611,81416.0,81415.0,0.1843595]
[1744357394849,0.0331,81416.0,81415.0,0.1843595]
[1744357395048,0.0331,81416.0,81415.0,0.2473595]
[1744357395247,0.03314,81416.0,81415.0,0.2162595]
[1744357395451,0.1560495,81416.0,81415.0,0.2162595]
[1744357395746,0.03314,81416.0,81415.0,0.2162595]
[1744357395952,4e-05,81416.0,81415.0,0.2489595]
[1744357396653,0.0314,81420.0,81419.0,0.1229049]
[1744357397345,0.0644,81420.0,81419.0,0.1229049]
[1744357398355,5.401e-05,81423.0,81422.0,0.1229004]
[1744357398558,5.401e-05,81423.0,81422.0,0.4837004]
[1744357399146,0.0004,81426.0,81425.0,0.1228959]
[1744357399347,0.03119842,81437.0,81436.0,0.1228793]
[1744357399542,0.1539778,81437.0,81436.0,0.1228793]
[1744357399745,0.03114,81437.0,81436.0,0.1228793]
[1744357400049,0.1540178,81437.0,81436.0,0.1228793]
[1744357400250,0.1540178,81437.0,81436.0,0.1542793]
[1744357400451,0.03114,81437.0,81436.0,0.1542793]
[1744357400754,0.1540178,81437.0,81436.0,0.1542793]
[1744357401258,0.03114,81437.0,81436.0,0.1542793]
[1744357401960,0.03114,81437.0,81436.0,0.16340078]
[1744357404160,0.1540178,81437.0,81436.0,0.16340078]
[1744357404661,0.03114,81437.0,81436.0,0.19650078]
[1744357405563,0.1540178,81437.0,81436.0,0.19650078]
[1744357405755,0.1228793,81436.0,81435.0,0.21893871]
[1744357405960,0.1228793,81436.0,81435.0,0.34181951]
[1744357406960,0.3728793,81436.0,81435.0,0.16903871]
[1744357407160,0.1228808,81435.0,81434.0,0.16903871]
[1744357407463,0.2027608,81435.0,81434.0,0.16903871]
[1744357409360,0.6213608,81435.0,81434.0,0.16903871]
[1744357410459,0.0614418,81434.0,81428.0,0.12307558]
[1744357410762,0.4836898,81429.0,81428.0,0.12307558]
[1744357411661,0.5479898,81429.0,81428.0,0.12307558]
[1744357412261,0.1556898,81429.0,81428.0,0.12307558]
[1744357412465,0.0614429,81432.0,81429.0,0.184331]
[1744357412654,0.1228888,81430.0,81429.0,0.215331]
[1744357413563,0.1871853,81434.0,81433.0,0.1228838]
[1744357413861,0.2486265,81434.0,81433.0,0.1228838]
[1744357414351,5.401e-05,81437.0,81436.0,0.1228793]
[1744357414755,5.401e-05,81437.0,81434.0,0.0614405]
[1744357414756,0.1556702,81442.0,81441.0,0.1228717]
[1744357415360,0.1557102,81442.0,81441.0,0.1228717]
[1744357415861,0.1228732,81440.0,81439.0,0.1228735]
[1744357416561,0.1556732,81440.0,81439.0,0.1228735]
[1744357416855,0.2171103,81440.0,81439.0,0.1228735]
[1744357417360,0.2501103,81440.0,81439.0,0.1228735]
[1744357417557,0.0614389,81437.0,81432.0,0.1228839]
[1744357417858,0.1843242,81435.0,81434.0,0.1228808]
[1744357418265,0.2499242,81435.0,81434.0,0.1228808]
[1744357423270,0.2169242,81435.0,81434.0,0.1228808]
[1744357423464,0.2812242,81435.0,81434.0,0.1228808]
[1744357423666,0.0614427,81432.0,81428.0,0.00018428]
[1744357423865,0.1228898,81429.0,81428.0,0.00018428]
[1744357424763,0.1228898,81429.0,81428.0,0.12307558]
[1744357424959,0.0645,81431.0,81428.0,0.00018428]
[1744357425159,0.3608,81434.0,81433.0,0.1228838]
[1744357425359,4e-05,81442.0,81440.0,0.1228732]
[1744357425360,0.812,81441.0,81440.0,0.1228732]
[1744357425769,0.1843315,81432.0,81431.0,0.1843284]
[1744357425965,0.5451315,81432.0,81429.0,0.0328]
[1744357426165,0.1228898,81429.0,81428.0,8e-08]
[1744357426470,0.1229185,81410.0,81409.0,0.19857546]
[1744357426769,0.9287985,81410.0,81409.0,0.19857546]
[1744357427370,0.9613985,81410.0,81409.0,0.19857546]
[1744357428272,0.8771185,81410.0,81409.0,0.19857546]
[1744357428570,0.9614385,81410.0,81409.0,0.32149546]
[1744357431075,0.9614385,81410.0,81409.0,0.12292]
[1744357431668,0.8771585,81410.0,81409.0,0.12292]
[1744357432069,0.9287985,81410.0,81409.0,0.12292]
[1744357432268,0.9288385,81410.0,81409.0,0.18792]
[1744357432470,0.9288385,81410.0,81409.0,0.15602]
[1744357432667,0.12292,81409.0,81408.0,0.0301]
[1744357432867,0.12292,81409.0,81404.0,0.0319]
[1744357432868,0.1229276,81405.0,81404.0,0.1229265]
[1744357433166,0.1229276,81405.0,81404.0,0.1560265]
[1744357433472,0.1553276,81405.0,81404.0,0.1560265]
[1744357435959,0.1229276,81405.0,81404.0,0.1868265]
[1744357436168,0.1229276,81405.0,81404.0,0.1560265]
[1744357436368,0.1550276,81405.0,81404.0,0.1560265]
[1744357436960,0.1859676,81405.0,81404.0,0.1560265]
[1744357437372,0.2702476,81405.0,81404.0,0.1560265]
[1744357438776,0.2702476,81405.0,81404.0,0.0331]
[1744357438976,0.2702476,81405.0,81404.0,0.1560276]
[1744357439278,0.1229276,81404.0,81403.0,0.00049138]
[1744357439477,0.1554276,81404.0,81403.0,0.00049138]
[1744357439771,0.1554276,81404.0,81403.0,0.12342048]
[1744357441079,0.2397076,81404.0,81403.0,0.12342048]
[1744357441281,0.2725076,81404.0,81403.0,0.12342048]
[1744357443372,0.1882276,81404.0,81403.0,0.12342048]
[1744357443572,0.2725076,81404.0,81403.0,0.12342048]
[1744357444379,0.2325076,81404.0,81403.0,0.12342048]
[1744357444978,0.1482276,81404.0,81403.0,0.12342048]
[1744357445178,0.2325476,81404.0,81403.0,0.12342048]
[1744357445778,0.1482276,81404.0,81403.0,0.00049138]
[1744357445981,0.2325476,81404.0,81403.0,0.00049138]
[1744357446183,0.2325476,81404.0,81403.0,0.03059138]
[1744357446972,0.1482276,81404.0,81403.0,0.15352048]
[1744357447178,0.0829276,81404.0,81403.0,0.15352048]
[1744357447678,0.1673676,81404.0,81403.0,0.15352048]
[1744357447880,0.1674076,81404.0,81403.0,0.15352048]
[1744357450779,0.1977076,81404.0,81403.0,0.15352048]
[1744357456189,0.1132676,81404.0,81403.0,0.17007769]
[1744357456384,0.1674076,81404.0,81403.0,0.17007769]
[1744357456583,0.1673676,81404.0,81403.0,0.17007769]
[1744357456785,0.1674076,81404.0,81403.0,0.17007769]
[1744357456970,0.0829676,81404.0,81403.0,0.17007769]
[1744357457173,0.1674076,81404.0,81403.0,0.17007769]
[1744357457684,0.1673676,81404.0,81403.0,0.17007769]
[1744357457883,0.1674076,81404.0,81403.0,0.17006705]
[1744357458184,0.1674076,81404.0,81403.0,0.17002674]
[1744357458384,0.1674076,81404.0,81403.0,0.17002663]
[1744357458986,0.1674076,81404.0,81403.0,0.15352048]
[1744357459588,0.0829676,81404.0,81403.0,0.15352048]
[1744357459891,4e-05,81404.0,81403.0,0.16998691]
[1744357460191,0.1229191,81410.0,81409.0,0.12292]
[1744357460387,0.1229191,81410.0,81409.0,0.13938643]
[1744357461485,0.1229191,81410.0,81409.0,0.12292]
[1744357461684,0.1864191,81410.0,81409.0,0.12292]
[1744357464390,0.1229191,81410.0,81409.0,0.12292]
[1744357464891,0.1229591,81410.0,81409.0,0.12292]
[1744357465093,0.1842591,81410.0,81409.0,0.12292]
[1744357469597,0.1229261,81406.0,81405.0,0.122925]
[1744357470094,0.1848261,81406.0,81405.0,0.122925]
[1744357473394,0.1543261,81406.0,81405.0,0.122925]
[1744357473601,0.1229233,81407.0,81406.0,0.122923]
[1744357473793,0.1229233,81407.0,81406.0,0.153323]
[1744357474507,0.1229233,81407.0,81406.0,0.122923]
[1744357474798,0.1846233,81407.0,81406.0,0.153323]
[1744357476410,0.1846233,81407.0,81406.0,0.122923]
[1744357476922,0.1229276,81404.0,81403.0,0.00049138]
[1744357477514,0.1229276,81404.0,81403.0,0.12342048]
[1744357481518,0.1229276,81404.0,81403.0,0.15372048]
[1744357482015,0.11388,81407.0,81404.0,0.0614631]
[1744357482218,0.0308,81407.0,81406.0,0.1229246]
[1744357482713,0.0308,81407.0,81406.0,0.1855246]
[1744357482915,0.153723,81407.0,81406.0,0.1855246]
[1744357483311,0.153763,81407.0,81406.0,0.1855246]
[1744357485320,0.03084,81407.0,81406.0,0.1855246]
[1744357485721,0.153763,81407.0,81406.0,0.1855246]
[1744357485922,0.122963,81407.0,81406.0,0.1855246]
[1744357486623,0.122963,81407.0,81406.0,0.1534246]
[1744357487323,0.186463,81407.0,81406.0,0.1534246]
[1744357489923,0.06354,81407.0,81406.0,0.1534246]
[1744357490126,0.0635,81407.0,81406.0,0.1534246]
[1744357490322,0.06354,81407.0,81406.0,0.1534246]
[1744357493019,0.186463,81407.0,81406.0,0.1534246]
[1744357493621,0.06354,81407.0,81406.0,0.1534246]
[1744357494528,0.3608,81411.0,81410.0,0.1229185]
[1744357495122,0.483717,81411.0,81410.0,0.13932828]
[1744357495325,0.483717,81411.0,81410.0,0.20262828]
[1744357495623,0.483717,81411.0,81410.0,0.1862185]
[1744357495830,0.516217,81411.0,81410.0,0.20262803]
[1744357498131,0.516217,81411.0,81410.0,0.1862185]
[1744357498825,0.516217,81411.0,81410.0,0.1530185]
[1744357499023,0.0614629,81406.0,81396.0,0.29281092]
[1744357499221,0.1858261,81405.0,81404.0,0.01645111]
[1744357499427,0.1858261,81405.0,81401.0,0.00018428]
[1744357499428,0.1229276,81404.0,81401.0,0.00018428]
[1744357499628,0.4837276,81404.0,81401.0,0.12311518]
[1744357499932,0.5463276,81404.0,81402.0,0.1229302]
[1744357500132,0.5463276,81404.0,81401.0,0.06165028]
[1744357500336,0.5463276,81404.0,81403.0,0.12342048]
[1744357501436,0.5463276,81404.0,81403.0,0.00049138]
[1744357501632,0.7963276,81404.0,81403.0,8e-08]
[1744357501846,0.7963276,81404.0,81368.0,0.86431343]
[1744357501847,0.1229487,81390.0,81382.0,0.43984042]
[1744357502028,0.1229593,81383.0,81382.0,0.43984042]
[1744357502229,0.5668393,81383.0,81382.0,0.43984042]
[1744357502535,0.36084,81383.0,81382.0,0.56280122]
[1744357502732,4e-05,81383.0,81382.0,0.92360122]
[1744357502940,0.00023829,81391.0,81390.0,0.1229487]
[1744357503134,0.00023829,81391.0,81390.0,0.4837487]
[1744357503135,0.00018428,81391.0,81390.0,0.4837487]
[1744357503336,0.00022428,81391.0,81390.0,0.5479487]
[1744357503536,0.00018428,81391.0,81390.0,0.5479487]
[1744357503937,0.00022428,81391.0,81390.0,0.5479487]
[1744357505237,0.00022428,81391.0,81390.0,0.56425031]
[1744357506229,0.00022428,81391.0,81390.0,0.5479487]
[1744357506634,0.00018428,81391.0,81390.0,0.5479487]
[1744357506835,0.00022428,81391.0,81390.0,0.5479487]
[1744357508443,0.00022428,81391.0,81390.0,0.56425922]
[1744357509336,0.00022428,81391.0,81390.0,0.5479487]
[1744357510034,0.00022428,81391.0,81390.0,0.1554487]
[1744357510342,0.00022428,81391.0,81390.0,0.17185643]
[1744357510548,0.00022428,81391.0,81390.0,0.17185855]
[1744357511037,0.12317148,81391.0,81390.0,0.17185855]
[1744357511236,0.00022428,81391.0,81390.0,0.17185855]
[1744357512141,0.00018428,81391.0,81390.0,0.17185855]
[1744357512343,0.06422428,81391.0,81390.0,0.17185855]
[1744357515741,0.18717148,81391.0,81390.0,0.17185855]
[1744357515943,0.06422428,81391.0,81390.0,0.17185855]
[1744357516140,0.06422428,81391.0,81390.0,0.17188193]
[1744357517548,0.06418428,81391.0,81390.0,0.17188193]
[1744357517848,0.06422428,81391.0,81390.0,0.17188193]
[1744357519743,0.06422428,81391.0,81390.0,0.17178717]
[1744357520552,0.18717148,81391.0,81390.0,0.17178717]
[1744357520749,0.06422428,81391.0,81390.0,0.17178717]
[1744357521251,0.06422428,81391.0,81390.0,0.1554487]
[1744357522854,0.18717148,81391.0,81390.0,0.1554487]
[1744357523346,0.18717148,81391.0,81390.0,0.1229487]
[1744357523553,0.18717148,81391.0,81388.0,0.0614751]
[1744357523554,0.1229502,81389.0,81388.0,0.122951]
[1744357524753,0.0614811,81382.0,81379.0,0.12345162]
[1744357524945,0.1229699,81376.0,81375.0,0.0316]
[1744357526058,0.1880699,81376.0,81375.0,0.1545714]
[1744357527653,0.0321,81381.0,81380.0,0.1229638]
[1744357527854,0.2065223,81381.0,81380.0,0.1229638]
[1744357528047,0.1229623,81381.0,81380.0,0.1229638]
[1744357528257,0.2065623,81381.0,81380.0,0.13935039]
[1744357528955,0.2377623,81381.0,81380.0,0.13935039]
[1744357530055,0.2679623,81381.0,81380.0,0.13935039]
[1744357530256,0.2679623,81381.0,81380.0,0.13939727]
[1744357530456,0.2679623,81381.0,81380.0,0.1229638]
[1744357530760,0.37837559,81381.0,81380.0,0.1229638]
[1744357535055,0.2679623,81381.0,81380.0,0.1229638]
[1744357536957,0.2667223,81381.0,81380.0,0.1229638]
[1744357537158,0.2667223,81381.0,81380.0,0.139333]
[1744357537465,0.2667223,81381.0,81380.0,0.13941023]
[1744357540069,0.2667223,81381.0,81380.0,0.13937532]
[1744357540467,0.2667223,81381.0,81380.0,0.01641152]
[1744357540668,0.2667223,81381.0,81380.0,0.13937532]
[1744357540969,0.2667223,81381.0,81380.0,0.16997532]
[1744357542667,0.2667223,81381.0,81380.0,0.16995762]
[1744357542862,0.1532023,81381.0,81380.0,0.16995762]
[1744357543069,0.2355223,81381.0,81380.0,0.16995762]
[1744357543466,0.2662223,81381.0,81380.0,0.20185762]
[1744357547571,4e-05,81381.0,81380.0,0.53075762]
[1744357548067,0.11041329,81384.0,81383.0,0.1229593]
[1744357548273,0.11041329,81384.0,81383.0,0.13935312]
[1744357549273,0.11041329,81384.0,81383.0,0.13947905]
[1744357550173,0.11041329,81384.0,81383.0,0.13943271]
[1744357551071,0.11041329,81384.0,81383.0,0.13939348]
[1744357551773,0.11045329,81384.0,81383.0,0.13939348]
[1744357551978,0.18122357,81404.0,81383.0,0.68163418]
[1744357552170,0.25519277,81415.0,81414.0,0.1229125]
[1744357552474,0.25519277,81415.0,81414.0,0.4837125]
[1744357552877,0.25523277,81415.0,81414.0,0.49314625]
[1744357553070,0.25523277,81415.0,81414.0,0.55784625]
[1744357553663,0.25519277,81415.0,81414.0,0.55784625]
[1744357553865,0.25523277,81415.0,81414.0,0.55784625]
[1744357554877,0.20327457,81415.0,81414.0,0.55784625]
[1744357555073,0.20323457,81415.0,81414.0,0.55784625]
[1744357555272,0.20327457,81415.0,81414.0,0.55784625]
[1744357555780,0.0001839,81423.0,81422.0,0.1229004]
[1744357555979,0.0001839,81423.0,81422.0,0.4837004]
[1744357556779,0.0614399,81436.0,81425.0,0.1228959]
[1744357557078,0.4836829,81434.0,81425.0,0.1228959]
[1744357557378,0.1851841,81433.0,81425.0,0.1228959]
[1744357558570,0.0623,81433.0,81425.0,0.1228959]
[1744357559680,0.0322,81433.0,81425.0,0.1228959]
[1744357560381,0.00044,81426.0,81425.0,0.1228959]
[1744357562775,0.1233344,81426.0,81425.0,0.1228959]
[1744357563077,0.1228989,81423.0,81422.0,0.0937496]
[1744357563282,0.23335225,81423.0,81422.0,0.0614496]
[1744357564978,0.1843654,81419.0,81418.0,0.122902]
[1744357565482,0.29481875,81419.0,81418.0,0.122902]
[1744357566080,0.17190775,81419.0,81418.0,0.122902]
[1744357566477,0.11045335,81419.0,81418.0,0.122902]
[1744357566681,0.0311,81422.0,81421.0,0.1229019]
[1744357566975,0.0302,81425.0,81424.0,0.1228974]
[1744357567381,0.0631,81425.0,81424.0,0.1228974]
[1744357567781,0.0004,81426.0,81425.0,0.1228959]
[1744357568380,0.00044,81426.0,81425.0,0.1228959]
[1744357571189,0.11089335,81426.0,81425.0,0.1228959]
[1744357571689,0.23378775,81426.0,81425.0,0.1228959]
[1744357572787,0.26538775,81426.0,81425.0,0.1228959]
[1744357573781,0.14249335,81426.0,81425.0,0.1228959]
[1744357574182,0.14245335,81426.0,81425.0,0.1228959]
[1744357574384,0.14249335,81426.0,81425.0,0.1228959]
[1744357579395,0.17369335,81426.0,81425.0,0.1228959]
[1744357585198,0.17369335,81426.0,81423.0,0.29066422]
[1744357585389,0.23335075,81424.0,81423.0,0.29066422]
[1744357585593,0.1228974,81424.0,81423.0,0.29066422]
[1744357585792,0.23335075,81424.0,81423.0,0.29066422]
[1744357586001,0.23335075,81424.0,81423.0,0.41356312]
[1744357586002,0.29745075,81424.0,81423.0,0.41356312]
[1744357586391,0.29749075,81424.0,81423.0,0.1228989]
[1744357587393,0.17459335,81424.0,81423.0,0.1228989]
[1744357587590,0.17455335,81424.0,81423.0,0.1228989]
[1744357587791,0.17459335,81424.0,81423.0,0.1228989]
[1744357587993,0.17459335,81424.0,81423.0,0.1832989]
[1744357591104,0.17459335,81424.0,81423.0,0.1531989]
[1744357593600,0.29749075,81424.0,81423.0,0.1531989]
[1744357593808,0.17459335,81424.0,81423.0,0.1531989]
[1744357595608,4e-05,81424.0,81423.0,0.1531989]
[1744357596102,0.0004,81426.0,81425.0,0.1228959]
[1744357596811,0.00044,81426.0,81425.0,0.1543959]
[1744357598105,0.23378775,81426.0,81425.0,0.0315]
[1744357598309,0.23378775,81426.0,81425.0,0.1543959]
[1744357598996,0.17199335,81426.0,81425.0,0.1543959]
[1744357600012,0.14099335,81426.0,81425.0,0.1543959]
[1744357601509,0.14099335,81426.0,81425.0,0.37395315]
[1744357604907,0.03054,81426.0,81425.0,0.37395315]
[1744357605506,0.03054,81426.0,81425.0,0.1543959]
[1744357605700,0.00044,81426.0,81425.0,0.1543959]
[1744357606605,0.0004,81426.0,81425.0,0.1543959]
[1744357606805,0.00044,81426.0,81425.0,0.1543959]
[1744357608206,0.0004,81426.0,81425.0,0.1543959]
[1744357608909,0.00044,81426.0,81425.0,0.1543959]
[1744357609501,5.401e-05,81435.0,81434.0,0.1228823]
[1744357609706,0.11045335,81435.0,81434.0,0.4836823]
[1744357610410,0.11045335,81435.0,81434.0,0.5456823]
[1744357611808,0.11049335,81435.0,81434.0,0.5456823]
[1744357612107,0.0322,81439.0,81434.0,0.5456823]
[1744357612108,5.401e-05,81443.0,81442.0,0.1228702]
[1744357612509,0.0627,81443.0,81442.0,0.1228702]
[1744357612704,0.06274,81443.0,81442.0,0.1228702]
[1744357613712,0.29606205,81443.0,81442.0,0.1228702]
[1744357617617,0.29606205,81443.0,81442.0,0.1131495]
[1744357620426,0.29606205,81443.0,81441.0,0.1228702]
[1744357620427,0.1228717,81442.0,81441.0,0.1228702]
[1744357620616,0.23332505,81442.0,81441.0,0.1228702]
[1744357620816,0.29792505,81442.0,81441.0,0.1228702]
[1744357621626,0.65872505,81442.0,81441.0,0.1228702]
[1744357623230,0.65872505,81442.0,81441.0,0.1541702]
[1744357623620,0.29792505,81442.0,81441.0,0.1541702]
[1744357623816,0.29796505,81442.0,81441.0,0.1541702]
[1744357624630,0.17509335,81442.0,81441.0,0.1541702]
[1744357625021,0.17505335,81442.0,81441.0,0.1541702]
[1744357625335,0.17509335,81442.0,81441.0,0.1541702]
[1744357625525,0.29796355,81442.0,81441.0,0.1541702]
[1744357627421,0.17509335,81442.0,81441.0,0.1541702]
[1744357627621,4e-05,81442.0,81441.0,0.1541702]
[1744357627922,4e-05,81442.0,81441.0,0.1855702]
[1744357628616,0.00013287,81458.0,81441.0,0.6735]
[1744357628827,1e-08,81454.0,81453.0,0.1228536]
[1744357629027,0.541445,81459.0,81458.0,0.1228461]
[1744357629335,0.122845,81459.0,81458.0,0.13951297]
[1744357629517,5.401e-05,81460.0,81459.0,0.1228446]
[1744357629723,0.12289711,81460.0,81459.0,0.21380538]
[1744357630128,5.401e-05,81460.0,81459.0,0.21380538]
[1744357630825,0.1228388,81463.0,81462.0,0.12284]
[1744357631030,0.1862388,81463.0,81462.0,0.13950687]
[1744357632634,0.1862388,81463.0,81462.0,0.13976871]
[1744357632821,0.1862388,81463.0,81462.0,0.12284]
[1744357633222,0.1862388,81463.0,81462.0,0.13992367]
[1744357633438,0.0634,81463.0,81462.0,0.13991908]
[1744357633733,0.1862385,81463.0,81462.0,0.13991908]
[1744357634037,0.0634,81463.0,81462.0,0.13991908]
[1744357635328,0.0634,81463.0,81462.0,0.12284]
[1744357635835,0.0634,81463.0,81462.0,0.13986155]
[1744357636041,5.401e-05,81465.0,81464.0,0.122837]
[1744357636337,0.26634286,81465.0,81464.0,0.13985855]
[1744357636927,0.14350736,81465.0,81464.0,0.13985855]
[1744357637339,0.26634286,81465.0,81464.0,0.13985855]
[1744357637536,0.29814286,81465.0,81464.0,0.13985855]
[1744357637728,0.29814286,81465.0,81464.0,0.122837]
[1744357644841,0.1228416,81461.0,81460.0,0.0227]
[1744357645142,0.59409495,81461.0,81460.0,0.0227]
[1744357645337,0.1228506,81455.0,81454.0,0.1228515]
[1744357645741,0.23330395,81455.0,81454.0,0.1228515]
[1744357646137,0.29590395,81455.0,81454.0,0.1228515]
[1744357654247,0.27320395,81455.0,81454.0,0.1228515]
[1744357656749,0.17305335,81455.0,81454.0,0.1228515]
[1744357656946,0.29590395,81455.0,81454.0,0.1228515]
[1744357657146,0.29590395,81455.0,81454.0,0.1558515]
[1744357657345,0.29594395,81455.0,81454.0,0.1558515]
[1744357661755,0.29594395,81455.0,81454.0,0.1228515]
[1744357662855,0.1228521,81454.0,81453.0,0.031]
[1744357663054,0.23330545,81454.0,81453.0,0.1538536]
[1744357663248,0.29580545,81454.0,81453.0,0.031]
[1744357663858,0.29580545,81454.0,81453.0,0.1538536]
[1744357668057,0.29580545,81454.0,81453.0,0.031]
[1744357668363,0.1228551,81452.0,81451.0,0.00899675]
[1744357668561,0.1228551,81452.0,81445.0,0.21952007]
[1744357668562,0.1228642,81446.0,81445.0,0.21952007]
[1744357668862,0.23331755,81446.0,81445.0,0.34238577]
[1744357669966,0.29681755,81446.0,81445.0,0.34238577]
[1744357671964,0.29681755,81446.0,81445.0,0.37558577]
[1744357672868,0.29681755,81446.0,81445.0,0.15624985]
[1744357675167,0.29681755,81446.0,81445.0,0.00018415]
[1744357678267,0.71541755,81446.0,81445.0,0.00018415]
[1744357681774,0.79785755,81446.0,81445.0,0.00018415]
[1744357685276,0.6874042,81446.0,81445.0,0.00018415]
[1744357685478,0.79785755,81446.0,81445.0,0.00018415]
[1744357687478,1.15865755,81446.0,81445.0,0.00018415]
[1744357688475,1.15865755,81446.0,81445.0,5e-08]
[1744357688778,0.1228898,81429.0,81428.0,0.10888257]
[1744357688981,0.4836898,81429.0,81428.0,0.10888257]
[1744357689570,0.5164898,81429.0,81428.0,0.10888257]
[1744357690482,0.5489898,81429.0,81428.0,0.13938257]
[1744357691680,0.5489898,81429.0,81428.0,0.0305]
[1744357692682,0.56120066,81429.0,81428.0,0.0305]
[1744357692983,0.0614459,81428.0,81424.0,0.01020604]
[1744357693183,0.1228959,81425.0,81424.0,0.03200001]
[1744357693980,0.1228959,81425.0,81424.0,0.06380001]
[1744357694774,0.1228959,81425.0,81424.0,0.03200001]
[1744357695172,0.1229019,81421.0,81420.0,0.00018415]
[1744357695375,0.4837019,81421.0,81420.0,0.00018415]
[1744357695981,0.5466019,81421.0,81420.0,0.00018415]
[1744357699385,0.122911,81415.0,81414.0,0.0333]
[1744357699878,0.122911,81415.0,81414.0,0.04269863]
[1744357700285,0.185911,81415.0,81414.0,0.04269863]
[1744357700785,0.185911,81415.0,81414.0,0.0333]
[1744357703987,0.0614599,81410.0,81403.0,0.00049138]
[1744357704292,0.1229366,81398.0,81397.0,0.0314]
[1744357704479,0.1229457,81392.0,81391.0,0.0314]
[1744357704684,0.1229472,81391.0,81390.0,0.2924479]
[1744357706089,0.52601807,81391.0,81390.0,0.2924479]
[1744357707783,0.5137472,81391.0,81390.0,0.2924479]
[1744357707984,0.1844313,81388.0,81385.0,0.0328]
[1744357708190,0.1229532,81387.0,81386.0,0.0624]
[1744357708391,0.2353132,81387.0,81386.0,0.1853548]
[1744357708685,0.1531532,81387.0,81386.0,0.1532548]
[1744357708885,0.2353132,81387.0,81386.0,0.0303]
[1744357709091,0.2659132,81387.0,81386.0,0.0303]
[1744357710192,0.6845132,81387.0,81386.0,0.0303]
[1744357711392,0.6539132,81387.0,81386.0,0.1532548]
[1744357711585,0.5717532,81387.0,81386.0,0.1532548]
[1744357711783,0.6539532,81387.0,81386.0,0.1532548]
[1744357712285,0.6237532,81387.0,81386.0,0.1532548]
[1744357712690,0.6237132,81387.0,81386.0,0.1532548]
[1744357712890,0.6237532,81387.0,81386.0,0.1532548]
[1744357713288,0.6567532,81387.0,81386.0,0.1532548]
[1744357715394,0.6237532,81387.0,81386.0,0.1532548]
[1744357715989,0.6237132,81387.0,81386.0,0.1532548]
[1744357716193,0.2051132,81387.0,81386.0,0.1532548]
[1744357716782,0.2051532,81387.0,81386.0,0.1532548]
[1744357717094,0.2372132,81387.0,81386.0,0.1532548]
[1744357717294,0.2372532,81387.0,81386.0,0.1532548]
[1744357718794,0.2372532,81387.0,81386.0,0.0303]
[1744357718986,0.2694532,81387.0,81386.0,0.1532548]
[1744357719189,0.2694532,81387.0,81386.0,0.0303]
[1744357719386,0.2694532,81387.0,81386.0,0.1532548]
[1744357719594,0.1229563,81385.0,81384.0,0.1844353]
[1744357719782,0.1229593,81383.0,81382.0,0.00018428]
[1744357719989,0.1229638,81380.0,81376.0,0.1229689]
[1744357720191,0.0614837,81378.0,81360.0,0.01234417]
[1744357720492,0.1844811,81366.0,81365.0,0.1844751]
[1744357720897,0.0614931,81366.0,81365.0,0.1844751]
[1744357721295,0.0921931,81366.0,81365.0,0.1844751]
[1744357721801,0.0921931,81366.0,81365.0,0.19386155]
[1744357724297,0.0921931,81366.0,81365.0,0.00938645]
[1744357724497,0.122988,81364.0,81363.0,0.0319]
[1744357729589,0.122988,81364.0,81363.0,0.1548895]
[1744357729804,0.4186,81369.0,81368.0,0.122982]
[1744357730212,0.41864,81369.0,81368.0,0.122982]
[1744357730598,0.41864,81369.0,81368.0,0.186182]
[1744357731098,0.41864,81369.0,81368.0,0.546982]
[1744357731500,0.4186,81369.0,81368.0,0.546982]
[1744357731801,0.41864,81369.0,81368.0,0.546982]
[1744357733607,0.00018428,81374.0,81373.0,0.1229744]
[1744357734397,0.00018428,81374.0,81373.0,0.1856744]
[1744357735297,0.00022428,81374.0,81373.0,0.1856744]
[1744357735898,0.00022428,81374.0,81373.0,0.19767671]
[1744357736104,0.1548527,81388.0,81387.0,0.1229532]
[1744357736502,0.1860527,81388.0,81387.0,0.1229532]
[1744357736902,0.1860927,81388.0,81387.0,0.1229532]
[1744357737104,0.1860927,81388.0,81387.0,0.1840532]
[1744357738109,4e-05,81388.0,81387.0,0.1840532]
[1744357738702,0.03224,81388.0,81387.0,0.1840532]
[1744357740510,4e-05,81388.0,81387.0,0.1840532]
[1744357740705,4e-05,81388.0,81387.0,0.5448532]
[1744357741099,0.00018428,81396.0,81395.0,0.1229412]
[1744357741499,0.1468065,81405.0,81398.0,0.0614681]
[1744357741805,0.1468065,81405.0,81404.0,0.1229276]
[1744357742201,0.1468465,81405.0,81404.0,0.1229276]
[1744357742602,0.1468065,81405.0,81404.0,0.1839276]
[1744357743510,0.1468065,81405.0,81404.0,0.19336299]
[1744357743809,0.18386897,81411.0,81404.0,0.19336299]
[1744357743810,0.18386897,81411.0,81410.0,0.1229185]
[1744357744005,0.18386897,81411.0,81410.0,0.4837185]
[1744357744404,0.18390897,81411.0,81410.0,0.4837185]
[1744357744607,4e-05,81411.0,81410.0,0.5447185]
[1744357745000,0.122957,81411.0,81410.0,0.5447185]
[1744357745403,0.122957,81411.0,81410.0,0.4837185]
[1744357745604,0.187357,81411.0,81410.0,0.4837185]
[1744357748114,0.06444,81411.0,81410.0,0.4837185]
[1744357748711,0.06444,81411.0,81410.0,0.5153185]
[1744357749813,0.06444,81411.0,81410.0,0.1545185]
[1744357750018,0.187357,81411.0,81410.0,0.1545185]
[1744357750314,0.06444,81411.0,81410.0,0.1545185]
[1744357750816,0.06444,81411.0,81410.0,0.1229185]
[1744357752016,0.187357,81411.0,81410.0,0.1229185]
[1744357752414,0.06444,81411.0,81410.0,0.4837185]
[1744357752812,0.03264,81411.0,81410.0,0.5140185]
[1744357753212,0.0326,81411.0,81410.0,0.5140185]
[1744357753408,0.03264,81411.0,81410.0,0.5140185]
[1744357753604,0.00018428,81413.0,81412.0,0.1229155]
[1744357754308,0.00018428,81413.0,81412.0,0.1532155]
[1744357754709,0.00022428,81413.0,81412.0,0.1229155]
[1744357755316,0.06322428,81413.0,81412.0,0.1229155]
[1744357757419,0.122917,81411.0,81410.0,0.4222585]
[1744357757821,0.12468198,81413.0,81412.0,0.1229155]
[1744357763028,0.122917,81411.0,81410.0,0.4222585]
[1744357763223,0.1229261,81405.0,81403.0,0.1229285]
[1744357763527,0.0614611,81408.0,81399.0,0.1229315]
[1744357763724,0.1229351,81400.0,81399.0,0.1843989]
[1744357764026,0.1229316,81402.0,81401.0,0.1229306]
[1744357764226,0.1853316,81402.0,81401.0,0.1229306]
[1744357769533,0.1229578,81384.0,81383.0,0.4154062]
[1744357769722,0.1229578,81384.0,81383.0,0.2924479]